[Event "7th Cesme Open-C 2019"]
[Site "Cesme"]
[Date "2019.06.26"]
[Round "5"]
[White "Kaya, Nehar Baris"]
[Black "Basdar, Atakan"]
[Result "0-1"]
[ECO "A48"]
[WhiteElo "1409"]
[BlackElo "1242"]
[Annotator "NA"]
[PlyCount "126"]
[EventDate "2019.06.24"]
[EventType "swiss"]
[EventCountry "TUR"]
[SourceTitle "playchess.com"]
[Source "ChessBase"]
[SourceQuality "1"]
[TimeControl "5400+30"]

1. d4 {[%emt 0:00:00]} Nf6 {[%emt 0:03:30]} 2. Bf4 {[%emt 0:01:00]} g6 {[%emt 0:00:30]} 3. Nf3 {[%emt 0:00:00]} Bg7 {[%emt 0:00:30]} 4. e3 {[%emt 0:00:00]} O-O {[%emt 0:00:30]} 5. Bd3 {[%emt 0:00:00]} d6 {[%emt 0:00:00]} 6. c3 {[%emt 0:00:00]} h6 {[%emt 0:01:00]} 7. Nbd2 {[%emt 0:00:30]} Nh5 {[%emt 0:00:30]} 8. Bg3 {[%emt 0:00:30]} Nxg3 {[%emt 0:01:30]} 9. hxg3 {[%emt 0:00:00]} e5 {[%emt 0:04:30]} 10. O-O {[%emt 0:00:00]} Nc6 {[%emt 0:04:30]} 11. Nb3 {[%emt 0:09:30]} Re8 {[%emt 1:18:30]} 12. e4 {[%emt 0:01:30]} Bg4 {[%emt 0:00:00]} 13. d5 {[%emt 0:00:30]} Ne7 {[%emt 0:00:00]} 14. Be2 {[%emt 0:01:30]} f5 {[%emt 0:00:00]} 15. Nfd2 {[%emt 0:00:30]} Bxe2 {[%emt 0:00:00]} 16. Qxe2 {[%emt 0:00:30]} Rf8 {[%emt 0:00:00]} 17. f3 {[%emt 0:02:30]} f4 {[%emt 0:00:00]} 18. gxf4 {[%emt 0:02:30]} exf4 {[%emt 0:00:00]} 19. Nd4 {[%emt 0:00:00]} Bxd4+ {[%emt 0:00:00]} 20. cxd4 {[%emt 0:00:00]} g5 {[%emt 0:00:00]} 21. Kf2 {[%emt 0:06:30]} c6 {[%emt 0:00:00]} 22. dxc6 {[%emt 0:00:30]} Nxc6 {[%emt 0:00:00]} 23. Qc4+ {[%emt 0:01:30]} Kg7 {[%emt 0:00:00]} 24. b4 {[%emt 0:04:30]} Qb6 {[%emt 0:00:00]} 25. Rac1 {[%emt 0:08:30]} Rac8 {[%emt 0:00:00]} 26. Nb3 {[%emt 0:09:30]} Qxb4 {[%emt 0:00:00]} 27. Qc3 {[%emt 0:03:30]} Qxc3 {[%emt 0:00:00]} 28. Rxc3 {[%emt 0:00:30]} Nb4 {[%emt 0:00:00]} 29. Rfc1 {[%emt 0:00:30]} Rxc3 {[%emt 0:00:00]} 30. Rxc3 {[%emt 0:00:30]} Nxa2 {[%emt 0:00:00]} 31. Rc4 {[%emt 0:00:30]} b5 {[%emt 0:00:00]} 32. Rc6 {[%emt 0:00:30]} Rf6 {[%emt 0:00:00]} 33. Rc7+ {[%emt 0:00:30]} Rf7 {[%emt 0:00:00]} 34. Rc6 {[%emt 0:00:30]} Rd7 {[%emt 0:00:00]} 35. d5 {[%emt 0:04:30]} Nb4 {[%emt 0:00:00]} 36. Rc3 {[%emt 0:00:30]} Kf6 {[%emt 0:00:00]} 37. Nd4 {[%emt 0:00:30]} Rb7 {[%emt 0:00:00]} 38. Rc8 {[%emt 0:05:30]} a5 {[%emt 0:00:00]} 39. Nf5 {[%emt 0:02:30]} a4 {[%emt 0:00:00]} 40. Rh8 {[%emt 0:06:30]} Rb6 {[%emt 0:00:00]} 41. Rxh6+ {[%emt 0:01:30]} Kf7 {[%emt 0:00:00]} 42. Rh7+ {[%emt 0:04:30]} Kg8 {[%emt 0:00:00]} 43. Ra7 {[%emt 0:00:30]} Ra6 {[%emt 0:00:00]} 44. Rb7 {[%emt 0:03:30]} a3 {[%emt 0:00:00]} 45. Nd4 {[%emt 0:00:30]} a2 {[%emt 0:00:00]} 46. Nb3 {[%emt 0:00:30]} Ra3 {[%emt 0:00:00]} 47. Na1 {[%emt 0:00:30]} Rc3 {[%emt 0:00:00]} 48. Rxb5 {[%emt 0:06:27]} Nc2 {[%emt 0:00:00]} 49. Rb2 {[%emt 0:01:02]} Nxa1 {[%emt 0:00:00]} 50. Rxa2 {[%emt 0:00:00]} Rc2+ {[%emt 0:00:00]} 51. Rxc2 {[%emt 0:00:05]} Nxc2 {[%emt 0:00:00]} 52. Ke2 {[%emt 0:00:39]} Kf7 {[%emt 0:00:00]} 53. Kd2 {[%emt 0:00:17]} Nb4 {[%emt 0:00:00]} 54. Kc3 {[%emt 0:00:12]} Na6 {[%emt 0:00:00]} 55. Kd3 {[%emt 0:02:30]} Nc5+ {[%emt 0:00:00]} 56. Kd4 {[%emt 0:00:33]} Kf6 {[%emt 0:00:00]} 57. e5+ {[%emt 0:00:01]} Ke7 {[%emt 0:00:00]} 58. exd6+ {[%emt 0:01:13]} Kxd6 {[%emt 0:00:00]} 59. Kc4 {[%emt 0:00:02]} Nd7 {[%emt 0:00:00]} 60. Kd3 {[%emt 0:01:55]} Kxd5 {[%emt 0:00:00]} 61. Ke2 {[%emt 0:00:01]} Kd4 {[%emt 0:00:00]} 62. Kf2 {[%emt 0:00:01]} Kd3 {[%emt 0:00:00]} 63. g3 {[%emt 0:00:02]} Kd2 {[%emt 0:00:00]} 0-1

[Event "7th Cesme Open-C 2019"]
[Site "Cesme"]
[Date "2019.06.26"]
[Round "5"]
[White "Tarim, Metehan"]
[Black "Ceylan, Goktug"]
[Result "0-1"]
[ECO "B78"]
[WhiteElo "1338"]
[BlackElo "1283"]
[Annotator "NA"]
[PlyCount "94"]
[EventDate "2019.06.24"]
[EventType "swiss"]
[EventCountry "TUR"]
[SourceTitle "playchess.com"]
[Source "ChessBase"]
[SourceQuality "1"]
[TimeControl "5400+30"]

1. e4 {[%emt 0:00:30]} c5 {[%emt 0:00:30]} 2. Nf3 {[%emt 0:00:00]} d6 {[%emt 0:00:30]} 3. d4 {[%emt 0:00:00]} cxd4 {[%emt 0:00:00]} 4. Nxd4 {[%emt 0:00:30]} Nf6 {[%emt 0:00:00]} 5. Nc3 {[%emt 0:00:00]} g6 {[%emt 0:00:30]} 6. Be3 {[%emt 0:00:00]} Bg7 {[%emt 0:00:30]} 7. f3 {[%emt 0:00:00]} O-O {[%emt 0:00:30]} 8. Bc4 {[%emt 0:00:00]} Nc6 {[%emt 0:00:30]} 9. Qd2 {[%emt 0:00:30]} Bd7 {[%emt 0:00:30]} 10. O-O-O {[%emt 0:00:30]} Rc8 {[%emt 0:00:30]} 11. Bb3 {[%emt 0:00:00]} Nxd4 {[%emt 0:00:00]} 12. Bxd4 {[%emt 0:00:00]} b5 {[%emt 0:01:00]} 13. g4 {[%emt 0:13:30]} a5 {[%emt 0:01:30]} 14. a3 {[%emt 0:01:30]} a4 {[%emt 0:05:30]} 15. Ba2 {[%emt 0:01:30]} Qa5 {[%emt 0:03:30]} 16. g5 {[%emt 0:05:30]} Nh5 {[%emt 0:01:30]} 17. Bxg7 {[%emt 0:00:30]} Kxg7 {[%emt 0:01:30]} 18. Nd5 {[%emt 0:02:30]} Qxd2+ {[%emt 0:01:30]} 19. Rxd2 {[%emt 0:00:30]} Rfe8 {[%emt 0:03:30]} 20. Nb6 {[%emt 0:04:30]} Rc7 {[%emt 0:01:30]} 21. Nxd7 {[%emt 0:00:30]} Rxd7 {[%emt 0:00:00]} 22. e5 {[%emt 0:00:30]} Nf4 {[%emt 0:03:00]} 23. exd6 {[%emt 0:01:30]} Rxd6 {[%emt 0:00:30]} 24. Rxd6 {[%emt 0:00:30]} exd6 {[%emt 0:00:00]} 25. Rd1 {[%emt 0:00:30]} Nh3 {[%emt 0:01:00]} 26. Rxd6 {[%emt 0:04:30]} Nxg5 {[%emt 0:00:30]} 27. Rd7 {[%emt 0:02:30]} Re1+ {[%emt 0:08:30]} 28. Kd2 {[%emt 0:00:00]} Nxf3+ {[%emt 0:00:30]} 29. Kc3 {[%emt 0:00:00]} Nxh2 {[%emt 0:00:30]} 30. Rxf7+ {[%emt 0:00:30]} Kh6 {[%emt 0:00:00]} 31. Rb7 {[%emt 0:00:30]} Re5 {[%emt 0:00:00]} 32. Bg8 {[%emt 0:00:30]} Rc5+ {[%emt 0:07:30]} 33. Kd3 {[%emt 0:01:30]} Nf3 {[%emt 0:00:30]} 34. Rxh7+ {[%emt 0:00:30]} Kg5 {[%emt 0:00:30]} 35. c3 {[%emt 0:01:30]} Kf4 {[%emt 0:09:30]} 36. Rf7+ {[%emt 0:04:30]} Kg3 {[%emt 0:01:30]} 37. Re7 {[%emt 0:00:30]} g5 {[%emt 0:03:30]} 38. Re4 {[%emt 0:00:30]} Re5 {[%emt 0:08:30]} 39. b4 {[%emt 0:03:30]} Ne1+ {[%emt 0:07:30]} 40. Kd4 {[%emt 0:02:30]} Rxe4+ {[%emt 0:00:30]} 41. Kxe4 {[%emt 0:00:00]} Nc2 {[%emt 0:00:30]} 42. Kf5 {[%emt 0:00:00]} g4 {[%emt 0:00:30]} 43. c4 {[%emt 0:00:30]} bxc4 {[%emt 0:03:30]} 44. b5 {[%emt 0:00:30]} Nd4+ {[%emt 0:00:30]} 45. Ke4 {[%emt 0:00:30]} c3 {[%emt 0:00:30]} 46. Kd3 {[%emt 0:00:30]} Nxb5 {[%emt 0:02:30]} 47. Be6 {[%emt 0:00:30]} Kf4 {[%emt 0:00:30]} 0-1

[Event "7th Cesme Open-C 2019"]
[Site "Cesme"]
[Date "2019.06.26"]
[Round "5"]
[White "Gorcuk, Ozgu"]
[Black "Kalinoglu, Yagiz"]
[Result "1/2-1/2"]
[ECO "D06"]
[WhiteElo "1337"]
[BlackElo "1222"]
[Annotator "NA"]
[PlyCount "69"]
[EventDate "2019.06.24"]
[EventType "swiss"]
[EventCountry "TUR"]
[SourceTitle "playchess.com"]
[Source "ChessBase"]
[SourceQuality "1"]
[TimeControl "5400+30"]

1. d4 {[%emt 0:00:30]} d5 {[%emt 0:00:30]} 2. c4 {[%emt 0:00:00]} c6 {[%emt 0:00:00]} 3. Nc3 {[%emt 0:00:00]} Nf6 {[%emt 0:00:00]} 4. Nf3 {[%emt 0:01:30]} Bf5 {[%emt 0:03:30]} 5. Bg5 {[%emt 0:01:30]} e6 {[%emt 0:08:30]} 6. e3 {[%emt 0:01:30]} Be7 {[%emt 0:00:30]} 7. Qb3 {[%emt 0:02:30]} Qb6 {[%emt 0:10:30]} 8. c5 {[%emt 0:02:30]} Qxb3 {[%emt 0:00:30]} 9. axb3 {[%emt 0:00:00]} Nbd7 {[%emt 0:00:30]} 10. b4 {[%emt 0:01:00]} O-O {[%emt 0:03:30]} 11. b5 {[%emt 0:01:30]} h6 {[%emt 0:07:30]} 12. Bh4 {[%emt 0:05:30]} Rfe8 {[%emt 0:02:30]} 13. Be2 {[%emt 0:02:30]} Bf8 {[%emt 0:02:30]} 14. Bxf6 {[%emt 0:01:30]} Nxf6 {[%emt 0:00:30]} 15. bxc6 {[%emt 0:03:30]} bxc6 {[%emt 0:00:30]} 16. Ne5 {[%emt 0:00:30]} Rec8 {[%emt 0:05:30]} 17. Ba6 {[%emt 0:01:30]} Rc7 {[%emt 0:02:30]} 18. b4 {[%emt 0:00:30]} Nd7 {[%emt 0:01:30]} 19. Nxd7 {[%emt 0:02:30]} Rxd7 {[%emt 0:00:30]} 20. b5 {[%emt 0:00:30]} cxb5 {[%emt 0:02:30]} 21. Bxb5 {[%emt 0:00:30]} Rdd8 {[%emt 0:04:30]} 22. Bc6 {[%emt 0:01:30]} Rab8 {[%emt 0:03:30]} 23. Rxa7 {[%emt 0:06:30]} Rb3 {[%emt 0:03:30]} 24. Nd1 {[%emt 0:01:30]} e5 {[%emt 0:03:30]} 25. O-O {[%emt 0:01:30]} exd4 {[%emt 0:01:30]} 26. exd4 {[%emt 0:00:30]} Bd3 {[%emt 0:02:30]} 27. Re1 {[%emt 0:03:30]} Rb1 {[%emt 0:00:30]} 28. Rb7 {[%emt 0:00:30]} Ra1 {[%emt 0:00:30]} 29. Rb2 {[%emt 0:00:30]} Rc8 {[%emt 0:01:30]} 30. Bd7 {[%emt 0:01:30]} Rc7 {[%emt 0:00:30]} 31. c6 {[%emt 0:00:00]} Ba3 {[%emt 0:01:30]} 32. Rb7 {[%emt 0:13:00]} Bd6 {[%emt 0:06:30]} 33. Rb2 {[%emt 0:04:30]} Ba3 {[%emt 0:00:30]} 34. Rb8+ {[%emt 0:00:30]} Kh7 {[%emt 0:00:30]} 35. Rb7 {[%emt 0:01:30]} 1/2-1/2

[Event "7th Cesme Open-C 2019"]
[Site "Cesme"]
[Date "2019.06.26"]
[Round "5"]
[White "Onel, Nazire Yagmur"]
[Black "Gunes, Deren"]
[Result "1-0"]
[ECO "B26"]
[WhiteElo "1232"]
[BlackElo "1257"]
[Annotator "NA"]
[PlyCount "124"]
[EventDate "2019.06.24"]
[EventType "swiss"]
[EventCountry "TUR"]
[SourceTitle "playchess.com"]
[Source "ChessBase"]
[SourceQuality "1"]
[TimeControl "5400+30"]

1. e4 {[%emt 0:00:30]} c5 {[%emt 0:00:30]} 2. Nc3 {[%emt 0:00:30]} Nc6 {[%emt 0:00:00]} 3. g3 {[%emt 0:00:30]} g6 {[%emt 0:00:00]} 4. Bg2 {[%emt 0:00:30]} Bg7 {[%emt 0:00:30]} 5. Nge2 {[%emt 0:00:30]} d6 {[%emt 0:00:30]} 6. d3 {[%emt 0:00:00]} Rb8 {[%emt 0:01:30]} 7. Be3 {[%emt 0:01:00]} b5 {[%emt 0:00:30]} 8. Qd2 {[%emt 0:00:30]} b4 {[%emt 0:01:30]} 9. Nd1 {[%emt 0:00:30]} e6 {[%emt 0:10:30]} 10. O-O {[%emt 0:00:30]} Nd4 {[%emt 0:03:30]} 11. h3 {[%emt 0:05:30]} Ne7 {[%emt 0:02:30]} 12. g4 {[%emt 0:02:30]} O-O {[%emt 0:02:30]} 13. Ng3 {[%emt 0:04:30]} Bb7 {[%emt 0:09:30]} 14. f4 {[%emt 0:09:30]} f5 {[%emt 0:03:30]} 15. Qc1 {[%emt 0:05:30]} a5 {[%emt 0:03:30]} 16. Bd2 {[%emt 0:03:30]} Ba8 {[%emt 0:08:30]} 17. Ne3 {[%emt 0:01:30]} Qb6 {[%emt 0:08:30]} 18. Re1 {[%emt 0:03:30]} a4 {[%emt 0:09:30]} 19. Nc4 {[%emt 0:07:30]} Qc7 {[%emt 0:02:30]} 20. Ne3 {[%emt 0:13:30]} a3 {[%emt 0:03:30]} 21. Rb1 {[%emt 0:07:30]} axb2 {[%emt 0:01:30]} 22. Rxb2 {[%emt 0:00:30]} Nb5 {[%emt 0:01:30]} 23. Rb3 {[%emt 0:03:30]} fxg4 {[%emt 0:01:30]} 24. Nxg4 {[%emt 0:01:30]} Nc6 {[%emt 0:02:30]} 25. Ne2 {[%emt 0:02:30]} Na5 {[%emt 0:01:30]} 26. Rb1 {[%emt 0:02:30]} Na3 {[%emt 0:00:30]} 27. Ra1 {[%emt 0:02:30]} Bxa1 {[%emt 0:00:30]} 28. Qxa1 {[%emt 0:00:30]} Qg7 {[%emt 0:00:30]} 29. Qxg7+ {[%emt 0:02:07]} Kxg7 {[%emt 0:00:30]} 30. Rc1 {[%emt 0:03:01]} h5 {[%emt 0:01:30]} 31. Nh2 {[%emt 0:00:50]} d5 {[%emt 0:01:24]} 32. e5 {[%emt 0:01:45]} d4 {[%emt 0:01:36]} 33. Nf3 {[%emt 0:02:25]} Bd5 {[%emt 0:02:13]} 34. Ne1 {[%emt 0:01:10]} Bxa2 {[%emt 0:01:55]} 35. Ra1 {[%emt 0:00:31]} Bd5 {[%emt 0:06:50]} 36. Bxd5 {[%emt 0:01:23]} exd5 {[%emt 0:00:02]} 37. Bc1 {[%emt 0:00:13]} Nc6 {[%emt 0:02:41]} 38. Bxa3 {[%emt 0:02:18]} bxa3 {[%emt 0:00:04]} 39. Rxa3 {[%emt 0:00:14]} Ra8 {[%emt 0:00:05]} 40. Rxa8 {[%emt 0:00:36]} Rxa8 {[%emt 0:00:03]} 41. c3 {[%emt 0:01:00]} Ra2 {[%emt 0:01:27]} 42. Kf1 {[%emt 0:00:19]} Ra3 {[%emt 0:01:50]} 43. cxd4 {[%emt 0:00:35]} Nxd4 {[%emt 0:00:33]} 44. Nxd4 {[%emt 0:00:46]} cxd4 {[%emt 0:00:03]} 45. Kf2 {[%emt 0:01:40]} Ra2+ {[%emt 0:00:31]} 46. Kf3 {[%emt 0:00:56]} Rh2 {[%emt 0:00:44]} 47. Kg3 {[%emt 0:01:24]} Re2 {[%emt 0:02:10]} 48. Nf3 {[%emt 0:01:04]} Re3 {[%emt 0:00:33]} 49. Kf2 {[%emt 0:01:02]} Rxd3 {[%emt 0:00:13]} 50. h4 {[%emt 0:00:33]} Ra3 {[%emt 0:01:58]} 51. Nxd4 {[%emt 0:01:56]} Ra4 {[%emt 0:02:09]} 52. Ne6+ {[%emt 0:02:00]} Kf7 {[%emt 0:00:50]} 53. Ng5+ {[%emt 0:00:30]} Ke7 {[%emt 0:00:00]} 54. Kf3 {[%emt 0:00:00]} Ra3+ {[%emt 0:00:19]} 55. Ke2 {[%emt 0:00:09]} d4 {[%emt 0:00:28]} 56. Nf3 {[%emt 0:00:29]} d3+ {[%emt 0:01:02]} 57. Kd2 {[%emt 0:00:09]} Ra4 {[%emt 0:00:41]} 58. Kxd3 {[%emt 0:02:46]} Rxf4 {[%emt 0:00:30]} 59. Ke3 {[%emt 0:00:00]} Rg4 {[%emt 0:00:03]} 60. Ke2 {[%emt 0:00:00]} Ke6 {[%emt 0:00:39]} 61. Kf2 {[%emt 0:00:17]} Kf5 {[%emt 0:00:44]} 62. Ke3 {[%emt 0:00:37]} Re4+ {[%emt 0:01:40]} 1-0

[Event "7th Cesme Open-C 2019"]
[Site "Cesme"]
[Date "2019.06.27"]
[Round "6"]
[White "Yucel, Sevdayil Mert"]
[Black "Tekin, Utku Berk"]
[Result "0-1"]
[ECO "E43"]
[WhiteElo "1324"]
[BlackElo "1303"]
[Annotator "NA RC"]
[PlyCount "90"]
[EventDate "2019.06.24"]
[EventType "swiss"]
[EventCountry "TUR"]
[SourceTitle "playchess.com"]
[Source "ChessBase"]
[SourceQuality "1"]
[TimeControl "5400+30"]

1. d4 {[%emt 0:04:30]} Nf6 {[%emt 0:00:30]} 2. c4 {[%emt 0:00:30]} e6 {[%emt 0:00:30]} 3. Nc3 {[%emt 0:00:30]} Bb4 {[%emt 0:00:00]} 4. e3 {[%emt 0:00:00]} b6 {[%emt 0:03:00]} 5. Bd3 {[%emt 0:01:00]} Bb7 {[%emt 0:00:30]} 6. f3 {[%emt 0:03:30]} Bxc3+ {[%emt 0:02:30]} 7. bxc3 {[%emt 0:00:30]} O-O {[%emt 0:04:30]} 8. Ne2 {[%emt 0:00:30]} d5 {[%emt 0:00:30]} 9. O-O {[%emt 0:01:30]} Nbd7 {[%emt 0:02:30]} 10. Ng3 {[%emt 0:06:30]} Re8 {[%emt 0:11:30]} 11. e4 {[%emt 0:01:30]} dxc4 {[%emt 0:01:30]} 12. Bxc4 {[%emt 0:01:30]} Qc8 {[%emt 0:01:30]} 13. Qe2 {[%emt 0:26:30]} c5 {[%emt 0:07:30]} 14. Be3 {[%emt 0:06:30]} Qc7 {[%emt 0:09:30]} 15. Rac1 {[%emt 0:03:30]} Rac8 {[%emt 0:08:30]} 16. Rfd1 {[%emt 0:01:30]} Nf8 {[%emt 0:02:30]} 17. Bg5 {[%emt 0:09:30]} N6d7 {[%emt 0:06:30]} 18. a4 {[%emt 0:05:30]} Ng6 {[%emt 0:07:30]} 19. Qa2 {[%emt 0:02:30]} Nf4 {[%emt 0:04:30]} 20. d5 {[%emt 0:04:23]} exd5 {[%emt 0:02:30]} 21. exd5 {[%emt 0:00:44]} Qe5 {[%emt 0:03:42]} 22. Ne4 {[%emt 0:03:04]} f6 {[%emt 0:03:57]} 23. Bh4 {[%emt 0:08:20]} g5 {[%emt 0:02:41]} 24. Bg3 {[%emt 0:00:35]} Kg7 {[%emt 0:00:58]} 25. Re1 {[%emt 0:01:39]} Qb8 {[%emt 0:04:54]} 26. h4 {[%emt 0:01:21]} h6 {[%emt 0:01:53]} 27. hxg5 {[%emt 0:02:07]} hxg5 {[%emt 0:00:50]} 28. Kf2 {[%emt 0:01:38]} Ne5 {[%emt 0:01:23]} 29. Bxf4 {[%emt 0:00:32]} gxf4 {[%emt 0:00:05]} 30. Bb5 {[%emt 0:00:22]} c4 {[%emt 0:02:42]} 31. Rcd1 {[%emt 0:01:21]} Red8 {[%emt 0:00:47]} 32. Rh1 {[%emt 0:00:55]} a6 {[%emt 0:01:00]} 33. Qa3 {[%emt 0:00:39]} Qc7 {[%emt 0:02:22]} 34. d6 {[%emt 0:00:43]} Qf7 {[%emt 0:00:45]} 35. d7 {[%emt 0:00:33]} Rc7 {[%emt 0:00:50]} 36. Qd6 {[%emt 0:01:20]} Rcxd7 {[%emt 0:00:30]} 37. Bxd7 {[%emt 0:00:30]} Rxd7 {[%emt 0:00:10]} 38. Qxf6+ {[%emt 0:00:03]} Qxf6 {[%emt 0:00:12]} 39. Rh7+ {[%emt 0:00:08]} Kg6 {[%emt 0:00:46]} 40. Rdxd7 {[%emt 0:00:36]} Bxe4 {[%emt 0:00:19]} 41. Ra7 {[%emt 0:00:47]} Nd3+ {[%emt 0:00:44]} 42. Ke2 {[%emt 0:00:11]} Bd5 {[%emt 0:00:27]} 43. Rh1 {[%emt 0:00:52]} Qe5+ {[%emt 0:00:19]} 44. Kd2 {[%emt 0:00:43]} Qe3+ {[%emt 0:00:02]} 45. Kc2 {[%emt 0:00:26]} Qe2+ {[%emt 0:00:06]} 0-1

[Event "7th Cesme Open-C 2019"]
[Site "Cesme"]
[Date "2019.06.27"]
[Round "6"]
[White "Ceylan, Goktug"]
[Black "Onel, Nazire Yagmur"]
[Result "1-0"]
[ECO "E12"]
[WhiteElo "1283"]
[BlackElo "1232"]
[Annotator "NA RC"]
[PlyCount "137"]
[EventDate "2019.06.24"]
[EventType "swiss"]
[EventCountry "TUR"]
[SourceTitle "playchess.com"]
[Source "ChessBase"]
[SourceQuality "1"]
[TimeControl "5400+30"]

1. d4 {[%emt 0:00:30]} Nf6 {[%emt 0:00:30]} 2. c4 {[%emt 0:00:30]} e6 {[%emt 0:00:30]} 3. Nc3 {[%emt 0:00:30]} b6 {[%emt 0:00:30]} 4. Nf3 {[%emt 0:00:30]} Bb7 {[%emt 0:00:30]} 5. Bg5 {[%emt 0:01:30]} Be7 {[%emt 0:00:30]} 6. e3 {[%emt 0:00:30]} O-O {[%emt 0:01:30]} 7. Bd3 {[%emt 0:00:30]} d6 {[%emt 0:02:30]} 8. O-O {[%emt 0:04:30]} c5 {[%emt 0:03:30]} 9. dxc5 {[%emt 0:08:30]} dxc5 {[%emt 0:03:30]} 10. Qe2 {[%emt 0:04:30]} Nh5 {[%emt 0:13:30]} 11. Bxe7 {[%emt 0:02:30]} Qxe7 {[%emt 0:00:00]} 12. Nd2 {[%emt 0:07:30]} Nf6 {[%emt 0:02:00]} 13. Nde4 {[%emt 0:00:30]} Nbd7 {[%emt 0:02:30]} 14. Qf3 {[%emt 0:07:30]} Kh8 {[%emt 0:07:30]} 15. Qg3 {[%emt 0:01:30]} Nxe4 {[%emt 0:11:30]} 16. Bxe4 {[%emt 0:00:30]} Nf6 {[%emt 0:00:30]} 17. Bxb7 {[%emt 0:01:30]} Qxb7 {[%emt 0:00:00]} 18. Rfd1 {[%emt 0:01:30]} Rfd8 {[%emt 0:11:00]} 19. f3 {[%emt 0:05:30]} a6 {[%emt 0:02:30]} 20. e4 {[%emt 0:13:30]} b5 {[%emt 0:05:30]} 21. cxb5 {[%emt 0:03:30]} axb5 {[%emt 0:00:30]} 22. e5 {[%emt 0:01:30]} Ne8 {[%emt 0:07:30]} 23. Ne4 {[%emt 0:03:30]} Qb6 {[%emt 0:01:30]} 24. Qf2 {[%emt 0:04:30]} Rxa2 {[%emt 0:09:14]} 25. Qxc5 {[%emt 0:00:30]} Qxc5+ {[%emt 0:01:05]} 26. Nxc5 {[%emt 0:00:00]} Rxa1 {[%emt 0:03:39]} 27. Rxa1 {[%emt 0:00:00]} Kg8 {[%emt 0:01:36]} 28. Ra5 {[%emt 0:00:30]} Nc7 {[%emt 0:04:28]} 29. Ra7 {[%emt 0:02:30]} Nd5 {[%emt 0:02:46]} 30. Rb7 {[%emt 0:00:30]} b4 {[%emt 0:00:29]} 31. Na6 {[%emt 0:00:30]} g6 {[%emt 0:00:55]} 32. Nxb4 {[%emt 0:00:00]} Nxb4 {[%emt 0:00:30]} 33. Rxb4 {[%emt 0:00:00]} Kf8 {[%emt 0:00:34]} 34. Kf2 {[%emt 0:00:30]} Rd2+ {[%emt 0:01:02]} 35. Kg3 {[%emt 0:00:30]} Rd5 {[%emt 0:00:33]} 36. f4 {[%emt 0:00:30]} h6 {[%emt 0:00:06]} 37. Rb8+ {[%emt 0:01:30]} Ke7 {[%emt 0:00:30]} 38. Rh8 {[%emt 0:00:00]} h5 {[%emt 0:00:56]} 39. Rb8 {[%emt 0:00:00]} Rd7 {[%emt 0:00:30]} 40. Rb5 {[%emt 0:00:30]} Rd4 {[%emt 0:00:19]} 41. Kf3 {[%emt 0:01:30]} Rd3+ {[%emt 0:00:30]} 42. Ke2 {[%emt 0:00:30]} Rd4 {[%emt 0:00:25]} 43. g3 {[%emt 0:00:30]} Rd7 {[%emt 0:00:30]} 44. b4 {[%emt 0:00:30]} Kd8 {[%emt 0:00:30]} 45. Rc5 {[%emt 0:00:00]} Rc7 {[%emt 0:00:41]} 46. Rxc7 {[%emt 0:00:00]} Kxc7 {[%emt 0:00:05]} 47. Kd3 {[%emt 0:00:30]} Kb6 {[%emt 0:00:30]} 48. Kc4 {[%emt 0:00:00]} Kc6 {[%emt 0:00:11]} 49. b5+ {[%emt 0:00:00]} Kb6 {[%emt 0:00:12]} 50. Kb4 {[%emt 0:00:30]} Kb7 {[%emt 0:00:30]} 51. Kc5 {[%emt 0:00:00]} Kc7 {[%emt 0:00:00]} 52. b6+ {[%emt 0:00:00]} Kb7 {[%emt 0:00:00]} 53. Kd6 {[%emt 0:00:30]} Kxb6 {[%emt 0:00:00]} 54. Ke7 {[%emt 0:00:30]} Kc7 {[%emt 0:00:00]} 55. Kxf7 {[%emt 0:00:30]} Kd7 {[%emt 0:00:20]} 56. Kxg6 {[%emt 0:00:30]} Ke7 {[%emt 0:00:00]} 57. Kxh5 {[%emt 0:00:00]} Kf7 {[%emt 0:00:00]} 58. g4 {[%emt 0:00:00]} Kg7 {[%emt 0:00:00]} 59. Kg5 {[%emt 0:00:00]} Kf7 {[%emt 0:00:11]} 60. Kh6 {[%emt 0:00:00]} Kg8 {[%emt 0:00:00]} 61. Kg6 {[%emt 0:00:00]} Kf8 {[%emt 0:00:00]} 62. f5 {[%emt 0:00:00]} exf5 {[%emt 0:00:11]} 63. gxf5 {[%emt 0:00:00]} Ke8 {[%emt 0:00:08]} 64. h4 {[%emt 0:00:00]} Kf8 {[%emt 0:00:30]} 65. e6 {[%emt 0:00:00]} Ke8 {[%emt 0:00:00]} 66. h5 {[%emt 0:00:00]} Kf8 {[%emt 0:00:09]} 67. h6 {[%emt 0:00:30]} Kg8 {[%emt 0:00:30]} 68. e7 {[%emt 0:00:30]} Kh8 {[%emt 0:00:30]} 69. e8=Q# {[%emt 0:00:00]} 1-0